bitfinex/quotes_SOLUSD_20250706
["timestamp","ask_amount","ask_price","bid_price","bid_amount"]
[1751823938011,0.03,152.89,152.88,44.64964886]
[1751823938205,0.03,152.89,152.88,48.33308462]
[1751823939009,0.03,152.91,152.9,25.18987122]
[1751823939418,0.03,152.91,152.9,28.87330698]
[1751823940784,0.03,152.91,152.9,30.94014187]
[1751823953324,0.03,152.91,152.9,25.18987122]
[1751823953526,0.03,152.91,152.9,30.94014187]
[1751823953732,0.03,152.91,152.9,18.64964886]
[1751823953906,0.03,152.91,152.9,25.18987122]
[1751823954235,0.03,152.91,152.9,30.94014187]
[1751823955504,0.03,152.91,152.9,25.18987122]
[1751823956605,0.03,152.91,152.9,18.64964886]
[1751823958017,0.03,152.91,152.9,25.18987122]
[1751823963940,0.03,152.91,152.9,28.87226585]
[1751823964726,0.03,152.91,152.9,18.64964886]
[1751823965738,11.66649463,152.91,152.88,0.03]
[1751823965914,3.68239463,152.89,152.88,0.03]
[1751823966925,11.00304638,152.89,152.88,0.03]
[1751823967539,3.68239463,152.89,152.88,0.03]
[1751823967745,11.0062898,152.89,152.88,0.03]
[1751823968453,14.52423257,152.91,152.88,0.03]
[1751823968622,3.68239463,152.89,152.88,0.03]
[1751823968825,5.75701189,152.89,152.88,0.03]
[1751823969955,13.08427197,152.9,152.88,0.03]
[1751823970141,5.75701189,152.9,152.88,0.03]
[1751823971640,5.75701189,152.89,152.88,0.03]
[1751823974049,14.52423257,152.91,152.88,0.03]
[1751823974050,13.07781064,152.9,152.88,0.03]
[1751823974234,5.75701189,152.9,152.88,0.03]
[1751823974543,13.07817154,152.9,152.88,0.03]
[1751823975842,5.75701189,152.9,152.88,0.03]
[1751823976244,13.07944895,152.9,152.88,0.03]
[1751823984251,5.75701189,152.89,152.88,0.03]
[1751823986158,7.31993613,152.9,152.88,0.03]
[1751823986461,5.75701189,152.89,152.88,0.03]
[1751823987950,7.9841,152.91,152.88,0.03]
[1751823988158,7.32056839,152.9,152.88,0.03]
[1751823988648,13.74111189,152.91,152.88,0.03]
[1751823988842,11.66802406,152.91,152.88,0.03]
[1751823991148,3.68392406,152.9,152.88,0.03]
[1751823992870,13.08297886,152.9,152.88,0.03]
[1751823993249,5.75699472,152.9,152.88,0.03]
[1751823995765,14.52406805,152.91,152.88,0.03]
[1751823995766,5.75699472,152.89,152.88,0.03]
[1751823998259,13.09050746,152.89,152.88,0.03]
[1751824002471,7.33351274,152.89,152.88,0.03]
[1751824003756,5.75699472,152.9,152.88,0.03]
[1751824004676,7.33705675,152.89,152.88,0.03]
[1751824005067,5.75699472,152.9,152.88,0.03]
[1751824006382,7.33737266,152.89,152.88,0.03]
[1751824010385,7.33649472,152.91,152.88,0.03]
[1751824010583,7.3478566,152.9,152.88,0.03]
[1751824010772,7.33649472,152.91,152.88,0.03]
[1751824010967,7.34756168,152.9,152.88,0.03]
[1751824011166,7.33649472,152.91,152.88,0.03]
[1751824011378,7.34753497,152.9,152.88,0.03]
[1751824011568,7.33649472,152.91,152.88,0.03]
[1751824011766,7.34678013,152.9,152.88,0.03]
[1751824011982,7.33649472,152.91,152.88,0.03]
[1751824012183,7.34649321,152.9,152.88,0.03]
[1751824012383,7.33649472,152.91,152.88,0.03]
[1751824012688,7.3460814,152.9,152.88,0.03]
[1751824012890,7.33649472,152.91,152.88,0.03]
[1751824013190,7.3459183,152.9,152.88,0.03]
[1751824013385,7.33649472,152.91,152.88,0.03]
[1751824013592,7.34582231,152.9,152.88,0.03]
[1751824013780,7.33649472,152.91,152.88,0.03]
[1751824013985,13.10281703,152.9,152.88,0.03]
[1751824014186,7.34582231,152.89,152.88,0.03]
[1751824015396,7.34434911,152.89,152.88,0.03]
[1751824017098,11.02861605,152.89,152.88,0.03]
[1751824017470,17.56926619,152.89,152.88,0.03]
[1751824018393,91.36633395,152.89,152.88,0.03]
[1751824018764,100.54677034,152.89,152.88,0.03]
[1751824018974,100.54677034,152.89,152.83,0.06]
[1751824018975,72.94499925,152.89,152.83,0.06]
[1751824019177,3.68426694,152.86,152.83,0.06]
[1751824019399,7.34434911,152.85,152.83,0.06]
[1751824019689,3.68426694,152.86,152.83,0.06]
[1751824019887,7.3384967,152.85,152.83,0.06]
[1751824020088,3.68426694,152.86,152.83,0.06]
[1751824020289,6.54116703,152.88,152.83,3.74426694]
[1751824020593,11.02258157,152.87,152.83,3.74426694]
[1751824020795,11.02258157,152.86,152.83,0.06]
[1751824021003,3.68426694,152.86,152.83,0.06]
[1751824021971,6.54116703,152.88,152.83,0.06]
[1751824022200,3.68426694,152.86,152.83,0.06]
[1751824022692,11.02277592,152.85,152.83,0.06]
[1751824022989,3.68426694,152.85,152.83,0.06]
[1751824024601,3.68426694,152.86,152.83,0.06]
[1751824024783,7.33076094,152.85,152.83,3.74426694]
[1751824025099,3.68426694,152.87,152.83,3.74426694]
[1751824025278,7.33098752,152.86,152.83,3.74426694]
[1751824025479,3.68426694,152.87,152.83,3.74426694]
[1751824025680,7.32994892,152.86,152.83,3.74426694]
[1751824025899,3.68426694,152.87,152.83,10.28726731]
[1751824026198,7.32986529,152.86,152.83,10.28726731]
[1751824026387,3.68426694,152.87,152.83,10.28726731]
[1751824027588,7.32865461,152.86,152.83,18.70964886]
[1751824027788,3.68426694,152.86,152.83,18.70964886]
[1751824029005,146.0,152.87,152.83,0.06]
[1751824029006,11.01477677,152.85,152.83,0.06]
[1751824029180,3.68426694,152.85,152.83,0.06]
[1751824029980,3.68426694,152.84,152.83,0.06]
[1751824030203,11.01243862,152.84,152.83,0.06]
[1751824031217,17.55522846,152.84,152.83,0.06]
[1751824031578,10.22705678,152.84,152.83,0.06]
[1751824032200,3.68426694,152.84,152.83,0.06]
[1751824034305,17.54865476,152.84,152.83,0.06]
[1751824034604,10.22705678,152.84,152.83,0.06]
[1751824040711,3.68426694,152.84,152.83,0.06]
[1751824042612,10.22705678,152.84,152.83,0.06]
[1751824045911,50.59946352,152.84,152.83,0.06]
[1751824055223,6.54407434,152.81,152.8,0.06]
[1751824055397,10.22834128,152.81,152.8,0.06]
[1751824055921,26.0,152.82,152.8,0.06]
[1751824056100,6.54150585,152.87,152.81,3.68426694]
[1751824056294,3.68426694,152.85,152.81,3.68426694]
[1751824056797,5.7601475,152.85,152.81,5.7601475]
[1751824057199,184.30221868,152.86,152.8,6.6041835]
[1751824057397,184.30221868,152.86,152.82,5.7601475]
[1751824058111,178.54207118,152.86,152.82,5.7601475]
[1751824058411,184.30221868,152.86,152.82,5.7601475]
[1751824058907,5.7601475,152.85,152.8,5.8201475]
[1751824059513,13.07956895,152.85,152.8,5.8201475]
[1751824059714,5.7601475,152.84,152.8,5.8201475]
[1751824060101,5.7601475,152.84,152.8,12.36457747]
[1751824061217,146.0,152.83,152.8,12.36457747]
[1751824067001,146.0,152.82,152.8,0.06]
[1751824067204,146.0,152.82,152.8,5.8201475]
[1751824072832,146.0,152.82,152.81,5.7601475]
[1751824073924,146.0,152.82,152.81,12.30422184]
[1751824076841,146.0,152.82,152.81,3.68632236]
[1751824079237,146.0,152.82,152.81,28.88004556]
[1751824079423,146.0,152.82,152.81,22.33597122]
[1751824081246,146.0,152.82,152.81,28.88004556]
[1751824081931,146.0,152.82,152.8,3.74632236]
[1751824082568,146.0,152.82,152.8,0.06]
[1751824083143,146.0,152.82,152.8,6.60448855]
[1751824083942,146.0,152.82,152.8,0.06]
[1751824086644,146.0,152.82,152.81,3.68632236]
[1751824086844,0.03,152.84,152.81,3.68632236]
[1751824087046,0.03,152.84,152.8,0.06]
[1751824087047,0.03,152.84,152.83,3.68632236]
[1751824091557,0.03,152.84,152.83,28.87918917]
[1751824093252,0.03,152.84,152.8,0.06]
[1751824093543,3.71632236,152.84,152.8,3.74632236]
[1751824096745,146.0,152.83,152.8,3.74632236]
[1751824096953,146.0,152.83,152.8,5.82092889]
[1751824100958,5.76092889,152.81,152.8,0.06]
[1751824101169,13.1043945,152.81,152.8,0.06]
[1751824102358,26.0,152.79,152.78,0.06]
[1751824102565,54.54511586,152.79,152.78,0.06]
[1751824102744,45.3789945,152.79,152.78,0.06]
[1751824103767,51.92392545,152.79,152.78,0.06]
[1751824105452,51.92392545,152.79,152.78,1e-08]
[1751824108572,178.54621627,152.76,152.75,0.06]
[1751824108871,217.38714516,152.76,152.75,0.06]
[1751824109871,191.38714516,152.76,152.75,0.06]
[1751824110071,191.38714516,152.76,152.74,0.06]
[1751824110072,1.5247,152.75,152.74,0.06]
[1751824110250,14.58179518,152.75,152.74,0.06]
[1751824111049,21.12844002,152.75,152.74,0.06]
[1751824114555,13.83227373,152.75,152.74,0.06]
[1751824115767,46.93227373,152.75,152.74,0.06]
[1751824117882,12.30757373,152.75,152.74,0.06]
[1751824118975,12.33757373,152.75,152.74,0.06]
[1751824120672,45.45757373,152.75,152.74,0.06]
[1751824121076,38.33757373,152.75,152.74,0.06]
[1751824128398,31.79092889,152.75,152.74,0.06]
[1751824128990,38.33757373,152.75,152.74,0.06]
[1751824129392,45.43757373,152.75,152.74,0.06]
[1751824132494,52.70265506,152.75,152.74,0.06]
[1751824140184,7.29508133,152.75,152.74,0.06]
[1751824140502,45.63033602,152.75,152.74,0.06]
[1751824141384,39.08369118,152.75,152.74,0.06]
[1751824142186,45.63033602,152.75,152.74,0.06]
[1751824143192,52.75033602,152.75,152.74,0.06]
[1751824143509,52.75033602,152.75,152.73,0.2]
[1751824143812,22.18682754,152.74,152.73,0.2]
[1751824145118,171.6,152.72,152.7,0.2]
[1751824145273,165.20205081,152.71,152.7,0.2]
[1751824147300,158.65369118,152.71,152.7,0.2]
[1751824148209,152.89276229,152.71,152.7,0.2]
[1751824178943,156.58580472,152.71,152.7,0.2]
[1751824179539,10.98580472,152.71,152.7,0.2]
[1751824180168,7.29276229,152.71,152.7,0.2]
[1751824181949,10.98580472,152.71,152.7,0.2]
[1751824187268,17.53416435,152.71,152.7,0.2]
[1751824190969,13.84112192,152.71,152.7,0.2]
[1751824191169,17.53416435,152.71,152.7,0.2]
[1751824193653,10.98580472,152.71,152.7,0.2]
[1751824197777,17.53416435,152.71,152.7,0.2]
[1751824200172,7.29276229,152.71,152.7,0.2]
[1751824202578,17.53416435,152.71,152.7,0.2]
[1751824203170,10.98580472,152.71,152.7,0.2]
[1751824204187,17.53416435,152.71,152.7,0.2]
[1751824217395,7.29276229,152.71,152.7,0.2]
[1751824218079,7.29276229,152.71,152.7,3.89304243]
[1751824218585,7.29276229,152.71,152.7,0.2]
[1751824255266,13.84112192,152.71,152.7,0.2]
[1751824255553,10.98580472,152.71,152.7,0.2]
[1751824257953,7.29276229,152.71,152.7,0.2]
[1751824263851,7.29276229,152.71,152.7,0.2]
[1751824265268,153.29276229,152.71,152.7,0.2]
[1751824267561,156.98580472,152.71,152.7,0.2]
[1751824269283,163.53416435,152.71,152.7,0.2]
[1751824270469,156.98580472,152.71,152.7,0.2]
[1751824271171,10.98580472,152.71,152.7,0.2]
[1751824273480,3.69304243,152.71,152.7,0.2]
[1751824273647,11.05342597,152.71,152.7,0.2]
[1751824276763,7.36038354,152.71,152.7,0.2]
[1751824280959,11.05342597,152.71,152.7,0.2]
[1751824281478,17.6017856,152.71,152.7,0.2]
[1751824285857,13.90874317,152.71,152.7,0.2]
[1751824286153,17.6017856,152.71,152.7,0.2]
[1751824294894,26.80226502,152.71,152.7,0.2]
[1751824295393,17.6017856,152.71,152.7,0.2]
[1751824305192,10.24140206,152.71,152.7,0.2]
[1751824305392,17.59954096,152.71,152.7,0.2]
[1751824311915,26.0,152.7,152.69,0.06]
[1751824312203,26.0,152.68,152.67,0.2]
[1751824312508,70.11118133,152.68,152.67,0.2]
[1751824313080,76.66082764,152.68,152.67,0.2]
[1751824314493,85.84512422,152.68,152.67,0.2]
[1751824316104,43.60082764,152.68,152.67,0.2]
[1751824319311,43.5868445,152.68,152.67,0.2]
[1751824320308,37.03719819,152.68,152.67,0.2]
[1751824320614,7.34415576,152.68,152.67,0.2]
[1751824320995,33.34415576,152.68,152.67,0.2]
[1751824324023,37.03719819,152.68,152.67,0.2]
[1751824326716,7.34415576,152.68,152.67,0.2]
[1751824328319,36.24175169,152.71,152.67,0.2]
[1751824328497,7.35102784,152.7,152.67,0.2]
[1751824328699,7.35102784,152.69,152.67,0.2]
[1751824328899,3.69304243,152.7,152.67,0.2]
[1751824329110,7.35081097,152.69,152.67,0.2]
[1751824329309,29.69304243,152.71,152.67,0.2]
[1751824329507,6.54809655,152.72,152.67,3.89304243]
[1751824329508,33.35082123,152.7,152.67,3.89304243]
[1751824329706,26.0,152.7,152.67,3.89304243]
[1751824331724,26.0,152.7,152.67,0.2]
[1751824331896,26.0,152.7,152.67,3.89304243]
[1751824332921,29.69304243,152.7,152.67,0.2]
[1751824333311,175.69304243,152.7,152.67,0.2]
[1751824335730,3.69304243,152.69,152.67,0.2]
[1751824336130,172.0,152.7,152.67,0.2]
[1751824336131,3.69304243,152.68,152.67,0.2]
[1751824338323,3.69304243,152.69,152.67,0.2]
[1751824339040,7.35091687,152.68,152.67,0.2]
[1751824347323,178.54915008,152.7,152.67,0.2]
[1751824347633,11.04407357,152.69,152.67,0.2]
[1751824347833,3.69304243,152.69,152.67,0.2]
[1751824348327,178.54915008,152.7,152.67,0.2]
[1751824348526,11.04400871,152.69,152.67,0.2]
[1751824348728,3.69304243,152.69,152.67,0.2]
[1751824351335,153.3512056,152.68,152.67,0.2]
[1751824351531,153.35095534,152.68,152.67,0.2]
[1751824352337,146.0,152.68,152.67,0.2]
[1751824352736,153.3509323,152.68,152.67,0.2]
[1751824353419,146.0,152.68,152.67,0.2]
[1751824354135,152.54964631,152.68,152.67,0.2]
[1751824354351,163.59383024,152.68,152.67,0.2]
[1751824355616,17.59383024,152.68,152.67,0.2]
[1751824355845,7.8299,152.67,152.65,0.2]
[1751824356152,7.8299,152.67,152.64,0.2]
[1751824356153,63.23073743,152.66,152.64,0.2]
[1751824356330,11.04418393,152.65,152.64,0.2]
[1751824357318,20.21707286,152.65,152.64,0.2]
[1751824358242,26.76800636,152.65,152.64,0.2]
[1751824358955,28.8540586,152.65,152.64,0.2]
[1751824359251,6.5493016,152.69,152.64,5.97909467]
[1751824359450,13.11864754,152.68,152.64,5.97909467]
[1751824359622,7.33955287,152.67,152.64,5.97909467]
[1751824359952,5.77909467,152.68,152.64,5.97909467]
[1751824360252,7.34018918,152.68,152.65,5.77909467]
[1751824360762,7.34018918,152.68,152.66,5.77909467]
[1751824360959,7.34018918,152.69,152.66,5.77909467]
[1751824361138,7.34018918,152.69,152.64,6.75134669]
[1751824361139,5.77909467,152.69,152.65,5.77909467]
[1751824361728,13.11986478,152.69,152.65,5.77909467]
[1751824361945,5.77909467,152.69,152.65,5.77909467]
[1751824362151,5.77909467,152.69,152.65,12.32983208]
[1751824362356,13.11986478,152.69,152.65,12.32983208]
[1751824362539,5.77909467,152.69,152.65,12.32983208]
[1751824362842,5.77909467,152.68,152.64,6.75132308]
[1751824363052,5.77909467,152.68,152.64,12.53041775]
[1751824363238,5.77909467,152.69,152.65,5.77909467]
[1751824363440,5.77909467,152.69,152.64,12.53041775]
[1751824363641,5.77909467,152.69,152.65,5.77909467]
[1751824365283,7.34137673,152.68,152.65,5.77909467]
[1751824365557,7.34137673,152.68,152.65,12.3299359]
[1751824366037,7.34137673,152.69,152.65,12.3899359]
[1751824366237,7.34137673,152.68,152.65,12.3899359]
[1751824366435,31.77909467,152.66,152.65,0.06]
[1751824366632,39.12170494,152.66,152.65,0.06]
[1751824366851,48.29459387,152.66,152.65,0.06]
[1751824367051,49.81759387,152.66,152.65,0.06]
[1751824368151,56.36809825,152.66,152.65,0.06]
[1751824369541,23.06600358,152.66,152.65,0.06]
[1751824369747,13.12170494,152.66,152.65,0.06]
[1751824371139,19.67220932,152.66,152.65,0.06]
[1751824371861,13.12170494,152.66,152.65,0.06]
[1751824374360,5.77909467,152.66,152.65,0.06]
[1751824374581,13.12170494,152.66,152.65,0.06]
[1751824374870,5.77909467,152.66,152.65,0.06]
[1751824375033,13.12170494,152.66,152.65,0.06]
[1751824375237,5.77909467,152.66,152.65,0.06]
[1751824375466,13.12170494,152.66,152.65,0.06]
[1751824375941,5.77909467,152.66,152.65,0.06]
[1751824376141,13.12170494,152.66,152.65,0.06]
[1751824376538,5.77909467,152.66,152.65,0.06]
[1751824376734,13.12170494,152.66,152.65,0.06]
[1751824376966,5.77909467,152.66,152.65,0.06]
[1751824377137,13.12170494,152.66,152.65,0.06]
[1751824377339,5.77909467,152.66,152.65,0.06]
[1751824377564,13.12170494,152.66,152.65,0.06]
[1751824377964,5.77909467,152.66,152.65,0.06]
[1751824378264,13.12170494,152.66,152.65,0.06]
[1751824378769,5.77909467,152.66,152.65,0.06]
[1751824379082,13.12170494,152.66,152.65,0.06]
[1751824380051,5.77909467,152.66,152.65,0.06]
[1751824380252,7.33409547,152.67,152.65,0.06]
[1751824380472,5.77909467,152.66,152.65,0.06]
[1751824381843,7.33547981,152.67,152.65,0.06]
[1751824382260,13.11457448,152.67,152.65,0.06]
[1751824383055,5.77909467,152.67,152.65,0.06]
[1751824389347,5.80909467,152.67,152.65,0.06]
[1751824390147,13.1479207,152.67,152.65,0.06]
[1751824392369,5.80909467,152.67,152.65,0.06]
[1751824392553,13.14797681,152.67,152.65,0.06]
[1751824395273,5.80909467,152.67,152.65,0.06]
[1751824397903,0.03,152.67,152.65,0.06]
[1751824398074,5.80909467,152.67,152.65,0.06]
[1751824401651,13.12546263,152.66,152.65,0.06]
[1751824404577,7.34636796,152.66,152.65,0.06]
[1751824404775,13.12546263,152.66,152.65,0.06]
[1751824405154,7.34636796,152.66,152.65,0.06]
[1751824407684,13.12546263,152.66,152.65,0.06]
[1751824410294,7.34636796,152.66,152.65,0.06]
[1751824410767,0.03,152.67,152.65,5.83909467]
[1751824412603,0.03,152.67,152.65,0.06]
[1751824412803,0.03,152.67,152.65,5.83909467]
[1751824413971,0.03,152.67,152.66,5.77909467]
[1751824415197,0.03,152.67,152.66,12.32959905]
[1751824423418,5.80909467,152.67,152.65,0.06]
[1751824423718,0.03,152.67,152.65,0.06]
[1751824423900,0.03,152.67,152.65,12.39002817]
[1751824424602,0.03,152.67,152.65,6.6109335]
[1751824432013,3.7244683,152.67,152.65,0.06]
[1751824432218,0.03,152.67,152.65,3.7544683]
[1751824433005,0.03,152.67,152.66,3.6944683]
[1751824434514,0.03,152.67,152.66,28.89462154]
[1751824439498,0.03,152.73,152.71,18.64964886]
[1751824439696,0.03,152.73,152.72,22.99891024]
[1751824439923,0.03,152.73,152.72,37.77678344]
[1751824440235,1e-08,152.73,152.72,37.77678344]
[1751824440399,0.03,152.75,152.74,44.64964886]
[1751824440599,0.03,152.75,152.74,48.34411716]
[1751824441330,156.0707683,152.83,152.76,6.54621628]
[1751824441625,156.0707683,152.83,152.79,3.6944683]
[1751824441928,156.0707683,152.83,152.76,6.54621628]
[1751824441929,3.6944683,152.82,152.76,6.54621628]
[1751824442094,3.6944683,152.82,152.78,3.6944683]
[1751824442821,5.76241293,152.82,152.78,5.76241293]
[1751824443494,5.76241293,152.82,152.78,12.30777088]
[1751824444315,5.76241293,152.8,152.77,18.64964886]
[1751824446727,5.76241293,152.81,152.77,30.95781812]
[1751824448212,5.76241293,152.81,152.77,25.19540519]
[1751824448411,5.76241293,152.81,152.77,30.95781812]
[1751824449131,5.76241293,152.79,152.75,6.54659441]
[1751824449340,5.76241293,152.79,152.76,18.64964886]
[1751824450404,151.76241293,152.8,152.76,30.95821506]
[1751824453428,151.76241293,152.8,152.77,5.76241293]
[1751824453611,146.0,152.8,152.77,5.76241293]
[1751824454334,158.30696824,152.8,152.76,18.64964886]
[1751824454506,5.76241293,152.79,152.75,30.95859517]
[1751824457967,5.76241293,152.79,152.75,30.98859517]
[1751824461313,5.76241293,152.79,152.75,0.03]
[1751824461511,5.76241293,152.76,152.75,0.03]
[1751824461913,7.37511293,152.76,152.75,0.03]
[1751824462838,13.92132921,152.76,152.75,0.03]
[1751824469340,5.76241293,152.76,152.75,0.03]
[1751824476639,12.30862921,152.76,152.75,0.03]
[1751824477531,19.62747831,152.76,152.75,0.03]
[1751824482461,19.65747831,152.76,152.75,0.03]
[1751824488963,11.04068847,152.76,152.75,0.03]
[1751824489162,3.72183937,152.76,152.75,0.03]
[1751824489368,11.04068847,152.76,152.75,0.03]
[1751824490138,3.72183937,152.76,152.75,0.03]
[1751824490548,11.05795538,152.76,152.75,0.03]
[1751824492543,17.60417166,152.76,152.75,0.03]
[1751824497474,17.61407857,152.76,152.75,0.03]
[1751824500175,7.37602292,152.76,152.75,0.03]
[1751824500350,11.06786229,152.76,152.75,0.03]
[1751824502658,17.61407857,152.76,152.75,0.03]
[1751824504246,76.71407857,152.76,152.75,0.03]
[1751824504449,26.0,152.73,152.66,6.55038788]
[1751824504650,3.69183937,152.69,152.66,6.55038788]
[1751824506580,3.69183937,152.7,152.66,10.24222725]
[1751824506756,152.54818088,152.72,152.66,6.55038788]
[1751824506956,5.77170561,152.7,152.66,12.32209349]
[1751824507860,146.0,152.69,152.66,12.32209349]
[1751824508176,146.0,152.69,152.66,5.77170561]
[1751824510185,146.0,152.69,152.66,12.32205962]
[1751824523492,151.77170561,152.69,152.66,6.55035401]
[1751824527296,151.80170561,152.69,152.66,6.55035401]
[1751824528000,151.80170561,152.69,152.64,6.55136268]
[1751824528192,151.80170561,152.69,152.65,5.77170561]
[1751824528788,149.72432681,152.69,152.65,3.69432681]
[1751824529291,149.72432681,152.69,152.66,6.55050438]
[1751824534199,149.72432681,152.69,152.65,10.24524137]
[1751824534400,3.69432681,152.66,152.63,6.61165216]
[1751824536997,3.69432681,152.65,152.63,0.06]
[1751824537204,146.0,152.67,152.63,0.06]
[1751824537205,3.69432681,152.64,152.63,0.06]
[1751824541686,146.0,152.66,152.63,3.75432681]
[1751824542001,146.0,152.66,152.65,3.69432681]
[1751824544794,146.0,152.66,152.65,10.24526031]
[1751824546896,146.0,152.66,152.64,3.69432681]
[1751824548206,146.0,152.66,152.64,10.24528985]
[1751824552319,146.0,152.66,152.64,10.24528985]
[1751824558210,149.69432681,152.65,152.63,0.06]
[1751824560222,146.0,152.65,152.63,0.06]
[1751824560423,149.69432681,152.65,152.63,0.06]
[1751824561823,146.0,152.65,152.63,0.06]
[1751824569806,149.69432681,152.65,152.63,0.06]
[1751824572133,149.72432681,152.65,152.63,0.06]
[1751824572632,3.69432681,152.64,152.63,0.06]
[1751824572819,5.31602681,152.64,152.63,0.06]
[1751824573020,18.67436103,152.64,152.63,0.06]
[1751824574109,25.22572371,152.64,152.63,0.06]
[1751824578318,18.67436103,152.64,152.63,0.06]
[1751824580539,14.98003422,152.64,152.63,0.06]
[1751824580728,11.33042681,152.64,152.63,0.06]
[1751824581114,66.54617435,152.64,152.63,0.06]
[1751824582249,73.09753703,152.64,152.63,0.06]
[1751824586857,58.32022979,152.64,152.63,0.06]
[1751824588249,25.22022979,152.64,152.63,0.06]
[1751824590565,21.52590298,152.64,152.63,0.06]
[1751824590736,25.22022979,152.64,152.63,0.06]
[1751824595857,25.25022979,152.64,152.63,0.06]
[1751824607170,18.69886711,152.64,152.63,0.06]
[1751824607478,11.06276711,152.64,152.63,0.06]
[1751824607869,7.3684403,152.64,152.63,0.06]
[1751824608082,0.03,152.64,152.63,0.06]
[1751824608461,3.72432681,152.64,152.63,0.06]
[1751824609750,0.03,152.64,152.63,0.06]
[1751824620277,0.03,152.64,152.63,3.75432681]
[1751824620801,0.03,152.64,152.63,0.06]
[1751824631897,3.72432681,152.64,152.63,0.06]
[1751824644531,11.06803953,152.64,152.63,0.06]
[1751824645637,0.03,152.64,152.63,0.06]
[1751824658707,0.03,152.64,152.63,3.75432681]
[1751824659729,0.03,152.64,152.63,28.95576758]
[1751824668115,0.03,152.64,152.63,25.26144077]
[1751824668315,0.03,152.64,152.63,28.95576758]
[1751824668512,3.72432681,152.64,152.63,0.06]
[1751824668723,149.72432681,152.64,152.63,0.06]
[1751824670541,146.03,152.64,152.63,0.06]
[1751824671050,0.03,152.64,152.63,22.40397567]
[1751824672252,0.03,152.64,152.63,28.95576758]
[1751824672945,0.03,152.64,152.63,31.0333161]
[1751824681656,1e-08,152.64,152.63,36.80519143]
[1751824681838,1e-08,152.64,152.63,31.0333161]
[1751824694859,1e-08,152.64,152.63,28.95453128]
[1751824708786,1e-08,152.64,152.63,25.26144077]
[1751824709078,1e-08,152.64,152.63,6.61179191]
[1751824709453,1e-08,152.64,152.63,0.06]
[1751824709682,3.69309052,152.64,152.63,0.06]
[1751824710077,1e-08,152.64,152.63,0.06]
[1751824731810,3.69309052,152.64,152.63,0.06]
[1751824733796,10.2444532,152.64,152.63,0.06]
[1751824746221,17.58118966,152.64,152.63,0.06]
[1751824746405,10.2444532,152.64,152.63,0.06]
[1751824747512,17.5822885,152.64,152.63,0.06]
[1751824750762,7.33783531,152.64,152.63,0.06]
[1751824750920,3.69309052,152.64,152.63,0.06]
[1751824751597,11.03906862,152.64,152.63,0.06]
[1751824753721,1e-08,152.64,152.63,0.06]
[1751824756931,1e-08,152.64,152.63,3.75309051]
[1751824758013,1e-08,152.64,152.63,10.30488242]
[1751824768444,1e-08,152.64,152.63,28.95453128]
[1751824777860,1e-08,152.64,152.63,25.26144077]
[1751824778032,1e-08,152.64,152.63,28.95453128]
[1751824787561,1e-08,152.64,152.63,25.26144077]
[1751824787755,1e-08,152.64,152.63,28.95453128]
[1751824794363,1e-08,152.64,152.63,25.26144077]
[1751824794567,1e-08,152.64,152.63,28.95453128]
[1751824803396,1e-08,152.64,152.63,25.26144077]
[1751824803682,1e-08,152.64,152.63,28.95453128]
[1751824807896,146.0,152.68,152.63,28.95453128]
[1751824807897,0.03,152.69,152.67,22.34273937]
[1751824808100,0.03,152.69,152.68,22.34273937]
[1751824808959,0.03,152.69,152.68,28.89238568]
[1751824809881,8.1039,152.75,152.69,44.64964886]
[1751824810185,8.1039,152.75,152.73,3.69309051]
[1751824810370,8.1039,152.75,152.72,3.69309051]
[1751824811366,8.1039,152.75,152.73,6.54750212]
[1751824812671,8.1039,152.75,152.72,10.24098508]